bitfinex/quotes_ETHUSD_20240730
["timestamp","ask_amount","ask_price","bid_price","bid_amount"]
[1722339951459,3.97386,3345.8,3345.4,0.15885219]
[1722339952716,0.985,3345.6,3345.4,0.15885219]
[1722339953211,0.985,3345.6,3345.2,2.98929]
[1722339953411,0.985,3345.6,3345.3,0.15885639]
[1722339953719,6.97369,3346.0,3345.3,2.98925]
[1722339953873,3.97369,3346.0,3345.5,2.98908]
[1722339954071,3.97369,3346.0,3345.5,2.98903]
[1722339954298,3.97369,3346.0,3345.6,0.15884379]
[1722339954480,2.98873,3345.9,3345.6,0.15884379]
[1722339954696,2.98873,3345.9,3345.5,2.98907]
[1722339954892,2.98873,3345.9,3345.7,0.15883959]
[1722339955224,2.98873,3345.9,3345.8,0.15883539]
[1722339955419,2.98882,3345.8,3345.4,2.98917]
[1722339955711,2.98882,3345.8,3345.5,0.15884799]
[1722339959635,3.97365,3346.0,3345.5,0.15884799]
[1722339959946,2.98875,3345.9,3345.5,0.15884799]
[1722339961838,5.97755,3345.9,3345.5,0.15884799]
[1722339962046,2.98875,3345.9,3345.5,0.15884799]
[1722339962256,3.915215,3345.9,3345.5,0.15884799]
[1722339962414,2.98884,3345.8,3345.5,0.15884799]
[1722339962744,2.98874,3345.9,3345.5,0.15884799]
[1722339963946,3.97365,3346.0,3345.5,3.14792799]
[1722339964122,0.985,3346.0,3345.6,2.98899]
[1722339964536,2.98877,3345.9,3345.7,0.15339187]
[1722339964726,0.985,3346.0,3345.7,0.15339187]
[1722339964925,0.985,3346.0,3345.2,2.3934]
[1722339965128,0.985,3346.0,3345.8,0.15338767]
[1722339965311,0.985,3346.0,3345.2,2.3934]
[1722339965511,0.985,3346.0,3345.9,0.15338347]
[1722339965754,0.985,3346.0,3345.2,2.3934]
[1722339966058,3.97347,3346.2,3345.3,0.15340867]
[1722339966355,2.98838,3346.3,3345.8,5.4295]
[1722339966720,2.98838,3346.3,3345.9,3.14188748]
[1722339966934,0.985,3346.6,3345.9,0.15315748]
[1722339967155,2.98825,3346.5,3346.0,2.98858]
[1722339967657,3.97311,3346.6,3346.1,3.14155999]
[1722339967818,5.18062466,3347.2,3346.1,3.14155999]
[1722339967819,5.30351,3347.1,3346.1,0.15301999]
[1722339968135,2.98792,3346.8,3346.3,2.98836]
[1722339968465,2.98792,3346.8,3346.4,0.15299932]
[1722339969040,2.98804,3346.7,3346.4,0.15299932]
[1722339969240,3.9729,3346.9,3345.8,5.42945]
[1722339969241,0.985,3346.5,3345.8,5.42945]
[1722339969424,3.97358,3346.1,3345.9,0.15291141]
[1722339969628,2.98864,3346.0,3345.5,2.98908]
[1722339969827,2.98864,3346.0,3345.6,0.152924]
[1722339969828,0.985,3345.9,3345.6,0.152924]
[1722339970334,3.97373,3345.9,3345.6,0.152924]
[1722339970566,3.97373,3345.9,3345.1,2.98939]
[1722339970567,0.985,3345.7,3345.1,2.98939]
[1722339970752,3.97395,3345.7,3345.3,2.98925]
[1722339971267,2.98895,3345.7,3345.3,2.98925]
[1722339971766,3.97395,3345.7,3345.3,2.98925]
[1722339973024,0.985,3345.7,3345.3,2.98925]
[1722339973258,2.98882,3345.8,3345.3,2.98925]
[1722339973461,2.98891,3345.7,3345.3,2.98925]
[1722339973672,5.97789,3345.7,3345.2,2.98935]
[1722339974179,2.989,3345.6,3345.1,2.98944]
[1722339975071,2.989,3345.6,3345.2,0.15318285]
[1722339975832,2.98888,3345.8,3345.2,3.14249285]
[1722339976027,2.98888,3345.8,3345.3,2.98925]
[1722339976358,2.98893,3345.7,3345.4,0.1532148]
[1722339976752,2.98893,3345.7,3345.2,2.98935]
[1722339976965,2.98893,3345.7,3345.5,0.15320253]
[1722339977171,2.98893,3345.7,3345.2,2.98935]
[1722339977378,2.98893,3345.7,3345.6,0.15319833]
[1722339977585,2.98893,3345.7,3345.2,2.98935]
[1722339977736,2.98893,3345.7,3345.6,0.15319833]
[1722339977927,2.98893,3345.7,3345.2,2.98935]
[1722339978132,2.98893,3345.7,3345.6,0.15319833]
[1722339978634,2.98902,3345.6,3344.9,5.39756]
[1722339978862,2.989,3345.6,3345.1,2.98943]
[1722339979252,2.989,3345.6,3345.2,0.15321513]
[1722339979731,2.98909,3345.5,3345.2,0.15321513]
[1722339980050,2.98909,3345.5,3345.0,2.98953]
[1722339980248,2.98909,3345.5,3345.1,0.15323143]
[1722339980833,2.989,3345.6,3345.1,3.14267143]
[1722339981068,2.989,3345.6,3345.1,6.13198143]
[1722339981275,2.989,3345.6,3345.1,3.14260143]
[1722339981572,2.989,3345.6,3345.2,2.98934]
[1722339982022,2.989,3345.6,3345.3,0.15323514]
[1722339982384,2.989,3345.6,3345.2,2.98934]
[1722339982613,2.989,3345.6,3345.4,0.15323094]
[1722339982880,2.989,3345.6,3345.0,2.98953]
[1722339982881,2.989,3345.6,3345.5,0.15322674]
[1722339983419,2.989,3345.6,3345.1,2.98944]
[1722339983720,2.98883,3345.8,3345.2,2.9893]
[1722339983721,2.98891,3345.7,3345.2,2.9893]
[1722339984027,2.98891,3345.7,3345.2,3.14253934]
[1722339985228,2.98887,3345.8,3345.3,2.98924]
[1722339985516,2.98887,3345.8,3345.2,0.15323934]
[1722339985517,5.39393,3345.9,3345.4,3.14234094]
[1722339986744,5.39393,3345.9,3345.5,0.2]
[1722339987055,2.9883,3346.4,3345.6,0.15326691]
[1722339987056,2.98842,3346.3,3345.6,0.15326691]
[1722339987270,2.98842,3346.3,3345.6,2.59396691]
[1722339987554,2.98856,3346.1,3345.7,2.9889]
[1722339987718,2.98856,3346.1,3345.7,3.1420457]
[1722339987910,2.98842,3346.3,3345.9,2.98873]
[1722339988105,5.43469,3346.4,3345.9,2.98873]
[1722339988302,2.98819,3346.5,3346.0,0.1531331]
[1722339988533,2.98819,3346.5,3346.0,3.1417031]
[1722339988946,5.97645,3346.5,3346.0,3.1417031]
[1722339989310,2.98819,3346.5,3346.0,3.1417031]
[1722339991658,5.377,3347.0,3346.0,3.1417031]
[1722339991956,5.377,3347.0,3346.1,2.9885]
[1722339991957,2.98818,3346.6,3346.1,2.9885]
[1722339992306,2.98818,3346.6,3346.2,0.15298351]
[1722339993458,3.97418,3346.6,3346.2,0.15298351]
[1722339995716,2.9882,3346.5,3346.2,0.15298351]
[1722339996115,2.9882,3346.5,3346.0,2.98861]
[1722339996339,2.98833,3346.4,3346.3,0.15293091]
[1722339996516,2.98833,3346.4,3345.9,37.9887]
[1722339996849,2.98838,3346.3,3345.9,37.98872]
[1722339997882,3.97428,3346.4,3345.9,37.98872]
[1722339998601,3.97428,3346.4,3345.9,2.98872]
[1722339998907,3.9746,3346.1,3345.6,2.4407]
[1722339999050,3.97474,3345.9,3345.4,2.98917]
[1722339999943,2.98874,3345.9,3345.4,2.98917]
[1722340000579,2.98897,3345.7,3345.2,5.32055]
[1722340000747,2.98897,3345.7,3345.2,2.98935]
[1722340000959,5.97795,3345.7,3345.2,2.98935]
[1722340001189,2.989,3345.6,3344.9,0.2997]
[1722340001758,2.989,3345.6,3344.9,3.2997]
[1722340002299,5.978,3345.6,3344.9,3.28923]
[1722340002448,2.989,3345.6,3345.0,2.98949]
[1722340003614,2.989,3345.6,3345.1,2.98942]
[1722340003899,3.97491,3345.7,3345.1,2.98938]
[1722340004105,5.31691,3346.1,3345.3,2.98925]
[1722340004250,3.0,3346.4,3345.4,2.42]
[1722340004251,2.98874,3345.9,3345.4,2.42]
[1722340004477,2.98882,3345.8,3345.4,2.42]
[1722340005150,2.98882,3345.8,3345.6,0.15294015]
[1722340005426,2.98874,3345.9,3345.6,0.15294015]
[1722340006292,2.98884,3345.8,3345.6,0.15294015]
[1722340006687,2.98891,3345.7,3345.6,0.15294015]
[1722340007607,5.97782,3345.7,3345.6,0.15294015]
[1722340008330,2.98891,3345.7,3345.6,0.15294015]
[1722340013235,2.98868,3346.0,3345.6,0.15294015]
[1722340013423,2.98819,3346.5,3345.8,2.98875]
[1722340013608,2.98852,3346.2,3345.7,2.98886]
[1722340013807,2.98852,3346.2,3345.9,0.15318168]
[1722340014011,3.97431,3346.4,3345.9,2.98865]
[1722340014237,2.98819,3346.5,3346.0,3.14179748]
[1722340014436,2.98833,3346.4,3346.0,0.15317748]
[1722340014753,2.98833,3346.4,3346.0,3.14181748]
[1722340015259,2.9882,3346.5,3346.0,3.14181748]
[1722340015806,2.3115,3347.0,3346.0,2.43337748]
[1722340016030,2.98793,3346.8,3346.1,0.05976638]
[1722340016259,2.98793,3346.8,3346.3,2.98833]
[1722340016755,2.98793,3346.8,3346.4,0.15316069]
[1722340018256,2.98802,3346.7,3346.4,0.15316069]
[1722340018626,2.98802,3346.7,3346.2,2.98845]
[1722340018831,2.98802,3346.7,3346.5,0.15315649]
[1722340019150,2.3115,3347.0,3346.6,0.15286992]
[1722340019332,8.29929,3347.0,3346.5,2.98819]
[1722340019559,8.29929,3347.0,3346.7,0.15286169]
[1722340019850,8.29929,3347.0,3346.6,0.15285782]
[1722340021162,2.98784,3346.9,3346.6,0.15285782]
[1722340021316,2.98793,3346.8,3346.6,0.15285782]
[1722340021517,2.98793,3346.8,3346.3,2.98837]
[1722340021724,2.98793,3346.8,3346.7,0.15284556]
[1722340021938,2.98793,3346.8,3346.2,2.98845]
[1722340022248,2.98793,3346.8,3346.1,37.98855]
[1722340022249,5.97594,3346.8,3346.7,0.15284153]
[1722340022462,2.9883,3346.4,3345.7,2.5959]
[1722340022627,2.4672,3346.4,3345.7,0.2]
[1722340022824,2.98868,3346.0,3345.8,0.15287528]
[1722340023214,2.98868,3346.0,3345.7,0.2]
[1722340023559,2.98868,3346.0,3345.8,0.15254854]
[1722340024241,2.98873,3345.9,3345.8,0.15254854]
[1722340024439,3.832907,3346.2,3345.8,0.15254854]
[1722340024620,2.98855,3346.1,3345.8,0.15254854]
[1722340025242,2.98805,3346.7,3345.8,5.60249854]
[1722340025243,2.98825,3346.5,3345.8,5.60249854]
[1722340025460,2.98825,3346.5,3346.0,2.98862]
[1722340025817,2.98805,3346.7,3346.1,3.14125939]
[1722340025818,2.98811,3346.6,3346.1,3.14125939]
[1722340026070,2.98805,3346.7,3346.2,2.9884]
[1722340026426,2.9881,3346.6,3346.3,0.15264048]
[1722340026724,2.9881,3346.6,3346.0,35.0]
[1722340027128,2.9881,3346.6,3346.1,0.15264888]
[1722340027553,2.9881,3346.6,3345.9,37.98867]
[1722340027755,2.9881,3346.6,3346.2,0.15252771]
[1722340028061,2.9881,3346.6,3346.1,5.97698]
[1722340028359,2.9881,3346.6,3346.3,0.15252352]
[1722340028569,2.9881,3346.6,3346.1,2.98848]
[1722340028747,2.9881,3346.6,3346.4,0.15255158]
[1722340028916,3.0,3347.0,3345.9,35.0]
[1722340029117,2.98788,3346.9,3346.5,0.15254738]
[1722340029318,8.97528,3347.2,3346.5,2.98815]
[1722340029517,8.97528,3347.2,3346.6,3.14062512]
[1722340029768,2.98776,3347.0,3346.6,0.15253512]
[1722340030133,2.98768,3347.1,3346.5,2.98815]
[1722340030475,5.98763,3347.2,3346.5,2.98815]
[1722340030476,2.98776,3347.0,3346.7,0.15253092]
[1722340030614,2.98776,3347.0,3346.6,0.15253512]
[1722340030987,2.98776,3347.0,3346.7,0.15253092]
[1722340031264,2.98776,3347.0,3346.4,2.98828]
[1722340031417,5.97557,3347.0,3346.8,0.15252673]
[1722340031616,2.98776,3347.0,3346.4,2.98828]
[1722340031830,5.98763,3347.2,3346.9,0.15252253]
[1722340032040,6.822973,3347.2,3346.4,2.98828]
[1722340032227,2.98775,3347.0,3346.4,2.98827]
[1722340032429,2.98775,3347.0,3346.5,0.15246673]
[1722340033169,2.98789,3346.9,3346.5,0.15246673]
[1722340033331,2.98809,3346.7,3346.1,2.9885]
[1722340033532,2.98809,3346.7,3346.6,0.15246253]
[1722340033533,2.98802,3346.7,3346.6,0.15246253]
[1722340033733,2.98812,3346.6,3346.0,5.97713]
[1722340033937,2.98812,3346.6,3346.1,2.98854]
[1722340034159,2.98812,3346.6,3346.1,3.14097109]
[1722340034335,2.98798,3346.8,3346.1,3.14097109]
[1722340034571,2.98798,3346.8,3346.3,2.98836]
[1722340034741,2.98801,3346.7,3346.3,2.98836]
[1722340034936,2.9881,3346.6,3346.4,0.15245075]
[1722340035265,5.9876,3347.2,3346.2,2.98841]
[1722340035266,2.98802,3346.7,3346.2,2.98841]
[1722340035422,2.98781,3347.0,3346.5,0.15244252]
[1722340035627,2.98788,3346.9,3346.4,2.98828]
[1722340035851,2.98788,3346.9,3346.6,0.15243833]
[1722340036063,2.98788,3346.9,3346.5,0.15243446]
[1722340036364,2.98792,3346.8,3346.7,0.15242606]
[1722340036568,2.98792,3346.8,3346.4,2.98828]
[1722340036569,2.98792,3346.8,3346.6,0.15243026]
[1722340036767,2.98792,3346.8,3346.7,0.15242606]
[1722340036917,5.97592,3346.8,3346.2,2.98844]
[1722340037123,2.98792,3346.8,3346.7,0.15233332]
[1722340037323,2.98792,3346.8,3345.8,5.44999]
[1722340037547,2.98792,3346.8,3346.7,0.15233332]
[1722340037731,2.98792,3346.8,3346.3,2.98828]
[1722340037933,2.98784,3346.9,3346.7,0.15233332]
[1722340038157,2.98784,3346.9,3346.4,2.98822]
[1722340038416,2.98784,3346.9,3346.8,0.15235331]
[1722340038572,2.98784,3346.9,3346.4,2.98822]
[1722340038765,2.98784,3346.9,3346.8,0.15235331]
[1722340038966,2.98784,3346.9,3346.5,2.98819]
[1722340039171,5.39571,3347.2,3346.8,0.15230493]
[1722340039369,2.98741,3347.4,3346.7,2.98797]
[1722340039608,2.98748,3347.3,3346.9,0.1522967]
[1722340039757,2.98757,3347.2,3346.8,0.15230089]
[1722340039959,2.98763,3347.2,3347.0,0.07743605]
[1722340040189,2.98763,3347.2,3346.7,2.98801]
[1722340040190,3.527523,3347.2,3346.7,2.98801]
[1722340040392,2.98763,3347.2,3347.1,0.14979309]
[1722340040576,2.98763,3347.2,3346.7,2.98801]
[1722340040802,2.98763,3347.2,3347.1,0.14979309]
[1722340041465,2.98709,3347.8,3346.8,0.05975777]
[1722340041668,2.98713,3347.7,3347.2,2.98757]
[1722340041975,2.98713,3347.7,3347.3,0.14968794]
[1722340042307,2.98713,3347.7,3347.2,2.9875]
[1722340042607,2.98713,3347.7,3347.4,0.14967971]
[1722340042816,3.68056323,3347.7,3347.3,0.1496839]
[1722340043100,2.98735,3347.5,3346.9,2.98776]
[1722340043407,2.98735,3347.5,3346.7,2.98795]
[1722340043408,2.98754,3347.3,3346.7,2.98795]
[1722340043604,2.98743,3347.4,3346.7,2.98795]
[1722340043765,2.98748,3347.3,3346.9,2.98781]
[1722340044283,2.9874,3347.4,3346.9,2.98777]
[1722340045219,2.98748,3347.3,3346.8,2.98792]
[1722340045620,4.08544732,3347.5,3346.9,2.98783]
[1722340045797,2.98741,3347.4,3346.9,2.98783]
[1722340046118,4.08536732,3347.5,3347.0,2.98771]
[1722340046493,4.08536732,3347.5,3347.0,2.9877]
[1722340046701,2.9873,3347.5,3347.0,2.9877]
[1722340047219,2.9873,3347.5,3347.1,2.98766]
[1722340047594,2.98739,3347.4,3347.2,0.14918819]
[1722340047831,2.98723,3347.6,3347.2,2.98755]
[1722340047988,2.98723,3347.6,3347.3,0.14918399]
[1722340048321,2.98723,3347.6,3347.2,2.98755]
[1722340048523,2.98723,3347.6,3347.1,2.98765]
[1722340048709,2.98723,3347.6,3347.3,0.14916539]
[1722340048908,1.62478032,3347.6,3347.4,0.14916119]
[1722340049121,0.69343323,3347.7,3347.4,0.14916119]
[1722340049285,0.69343323,3347.7,3347.3,2.98742]
[1722340049487,0.69343323,3347.7,3347.5,0.14913684]
[1722340049695,0.69343323,3347.7,3347.6,0.14913265]
[1722340050033,0.69343323,3347.7,3347.3,2.98742]
[1722340050233,2.98704,3347.8,3347.6,0.14909234]
[1722340050433,2.98704,3347.8,3347.3,2.98742]
[1722340050600,2.98704,3347.8,3347.7,0.14908815]
[1722340050800,2.98704,3347.8,3347.3,2.98742]
[1722340051001,2.98704,3347.8,3347.7,0.14908815]
[1722340051228,4.542441,3347.8,3347.3,2.98742]
[1722340051423,4.542441,3347.8,3347.0,2.3783]
[1722340051424,2.98713,3347.7,3347.2,2.98756]
[1722340051626,2.98713,3347.7,3347.4,0.14910073]
[1722340051933,2.98713,3347.7,3347.3,0.14910493]
[1722340052136,2.98713,3347.7,3347.5,0.14909654]
[1722340052652,4.542431,3347.8,3347.6,0.14909234]
[1722340053144,2.98712,3347.7,3347.2,2.97019591]
[1722340054048,2.2801,3347.9,3347.1,2.98765]
[1722340054263,2.98704,3347.8,3347.2,2.98757]
[1722340054611,2.9872,3347.7,3347.2,2.98757]
[1722340055529,5.26709,3347.9,3347.4,2.98736]
[1722340055842,2.98694,3348.0,3347.5,2.98726]
[1722340056042,10.28679,3348.1,3347.6,2.98719]
[1722340056209,10.28679,3348.1,3347.6,2.98716]
[1722340057378,7.3,3348.1,3347.7,2.98712]
[1722340057850,10.28679,3348.1,3347.7,2.98712]
[1722340058282,10.28679,3348.1,3347.5,2.98723]
[1722340058487,2.98699,3347.9,3347.4,2.98737]
[1722340058789,2.98699,3347.9,3347.3,2.98747]
[1722340059976,2.9869,3348.0,3347.5,2.9873]
[1722340060179,2.98695,3347.9,3347.5,2.9873]
[1722340060552,2.98686,3348.0,3347.5,2.98724]
[1722340061063,10.28681,3348.1,3347.6,2.98715]
[1722340061462,2.98681,3348.1,3347.6,2.98715]
[1722340061759,2.98691,3348.0,3347.5,2.98729]
[1722340062349,2.98691,3348.0,3347.5,5.97453]
[1722340063375,2.98691,3348.0,3347.5,5.97448]
[1722340063877,2.98691,3348.0,3347.5,2.98724]
[1722340064248,2.98691,3348.0,3347.6,2.98721]
[1722340064562,5.97383,3348.0,3347.5,2.98729]
[1722340064794,2.98695,3347.9,3347.4,2.98738]
[1722340065119,2.98687,3348.0,3347.5,2.9873]
[1722340065279,2.98687,3348.0,3347.5,3.13619907]
[1722340065878,2.98687,3348.0,3347.5,0.14889907]
[1722340066083,2.98705,3347.8,3347.5,0.14889907]
[1722340066329,2.98705,3347.8,3347.2,5.97507]
[1722340066330,2.98717,3347.7,3347.2,5.97507]
[1722340066483,2.98717,3347.7,3347.2,2.98751]
[1722340066683,2.98717,3347.7,3347.3,0.14877045]
[1722340067120,2.98717,3347.7,3347.2,2.98751]
[1722340067323,2.98717,3347.7,3347.4,0.14876626]
[1722340067632,2.98722,3347.6,3347.5,0.14876206]
[1722340067922,2.98722,3347.6,3347.2,2.98751]
[1722340068424,2.98722,3347.6,3347.3,0.14877045]
[1722340068648,5.30144,3347.7,3347.2,2.98751]
[1722340068878,2.98704,3347.8,3347.4,0.14876626]
[1722340069139,2.98704,3347.8,3347.4,2.98737]
[1722340069449,2.98695,3347.9,3347.5,0.14881848]
[1722340070243,7.3,3348.1,3347.6,2.98717]
[1722340070427,2.9869,3348.0,3347.6,0.14881428]
[1722340070630,10.28679,3348.1,3347.6,3.13597428]
[1722340070845,7.3,3348.1,3347.7,2.98705]
[1722340071047,7.3,3348.1,3347.7,3.13583188]
[1722340071703,2.98648,3348.5,3348.0,2.98683]
[1722340071905,4.540679,3348.5,3348.0,2.98683]
[1722340072236,4.540679,3348.5,3348.0,2.98679]
[1722340072403,4.540679,3348.5,3348.1,3.13547481]
[1722340072822,4.540679,3348.5,3348.1,0.14872481]
[1722340073637,7.527169,3348.5,3348.1,0.14872481]
[1722340073840,1.7096469,3348.4,3348.1,0.14872481]
[1722340074048,4.6961469,3348.4,3347.9,2.98693]
[1722340074252,2.9865,3348.4,3348.2,0.14872062]
[1722340074560,2.9865,3348.4,3347.9,2.98693]
[1722340074848,2.9865,3348.4,3348.3,0.14871642]
[1722340075037,2.9865,3348.4,3347.9,2.98693]
[1722340075352,2.9865,3348.4,3348.3,0.14871642]
[1722340075651,4.540728,3348.4,3348.3,0.14871642]
[1722340075804,2.9866,3348.3,3347.8,5.97398]
[1722340076188,2.98651,3348.4,3348.0,2.98682]
[1722340076742,10.28639,3348.6,3348.0,2.98682]
[1722340076743,2.98642,3348.5,3348.0,2.98682]
[1722340076939,4.540631,3348.5,3348.0,2.98684]
[1722340077300,4.540631,3348.5,3348.0,5.97365]
[1722340077500,4.540631,3348.5,3348.1,2.98676]
[1722340077732,1.554211,3348.5,3348.1,2.98676]
[1722340079304,7.3,3348.6,3348.2,2.98667]
[1722340080077,7.3,3348.6,3348.3,0.14835785]
[1722340080433,7.3,3348.6,3348.2,2.9866]
[1722340080632,7.3,3348.6,3348.4,0.14835366]
[1722340080950,7.3,3348.6,3348.5,0.14834946]
[1722340081131,7.3,3348.6,3348.3,2.98654]
[1722340081329,7.3,3348.6,3348.4,0.14835366]
[1722340081851,7.3,3348.6,3348.3,2.98658]
[1722340082039,7.3,3348.6,3348.5,0.14834946]
[1722340082243,2.98623,3348.7,3348.3,2.98658]
[1722340082473,2.98623,3348.7,3348.5,0.14834946]
[1722340082674,2.98623,3348.7,3348.2,2.98667]
[1722340082675,2.98632,3348.6,3348.4,0.14835366]
[1722340082831,2.98644,3348.5,3348.0,2.98683]
[1722340083041,2.9865,3348.4,3347.9,2.98694]
[1722340083255,2.98646,3348.5,3348.0,2.98685]
[1722340083738,2.98659,3348.3,3347.9,2.98694]
[1722340083940,2.98638,3348.6,3347.9,2.9869]
[1722340084167,2.98642,3348.5,3348.0,2.85460964]
[1722340085147,2.98642,3348.5,3347.9,2.9869]
[1722340085148,3.3682765,3348.6,3348.1,2.98671]
[1722340087513,2.98634,3348.6,3348.1,2.98671]
[1722340087681,2.98634,3348.6,3348.2,2.98667]
[1722340088220,2.98641,3348.5,3348.1,2.98676]
[1722340088442,2.98651,3348.4,3347.8,35.4]
[1722340088574,2.98651,3348.4,3347.9,2.98688]
[1722340088779,2.98641,3348.5,3347.9,2.98688]
[1722340088780,2.98642,3348.5,3347.9,2.98688]
[1722340088974,2.98642,3348.5,3348.0,2.98681]
[1722340089208,5.97291,3348.5,3348.0,2.98681]
[1722340089409,5.97291,3348.5,3347.9,2.98688]
[1722340089410,2.98653,3348.4,3347.9,2.98693]
[1722340090282,2.98642,3348.5,3348.0,2.98681]
[1722340091206,2.98642,3348.5,3348.1,2.98676]
[1722340093409,2.9866,3348.3,3347.9,2.98686]
[1722340093918,2.9865,3348.4,3347.9,2.98686]
[1722340094684,2.98641,3348.5,3348.0,2.98684]
[1722340094890,2.98641,3348.5,3347.8,35.4]
[1722340094891,2.98641,3348.5,3348.1,2.9867]
[1722340095143,2.98641,3348.5,3348.1,3.13505416]
[1722340095317,2.98641,3348.5,3348.1,0.14835416]
[1722340095888,2.9865,3348.4,3348.1,0.14835416]
[1722340096490,2.9865,3348.4,3347.9,2.98693]
[1722340096734,3.9715,3348.4,3348.2,0.14834997]
[1722340096903,2.98662,3348.3,3347.8,38.38702]
[1722340097101,3.97151,3348.4,3348.3,0.14834578]
[1722340097322,4.68175649,3348.4,3347.9,2.98689]
[1722340097518,2.98659,3348.3,3347.9,2.98689]
[1722340098539,3.9715,3348.4,3347.9,5.97378]
[1722340098870,3.3244,3348.6,3348.1,2.98675]
[1722340098999,2.98645,3348.5,3348.0,2.98684]
[1722340099200,2.98645,3348.5,3347.9,2.98689]
[1722340099201,3.97158,3348.4,3347.9,2.98689]
[1722340100137,3.97169,3348.2,3347.8,0.4]
[1722340100347,2.9868,3348.1,3347.8,0.4]
[1722340100698,2.98694,3347.9,3347.8,0.4]
[1722340102410,2.449,3348.1,3347.8,0.4]
[1722340102644,2.98674,3348.2,3347.8,0.4]
[1722340104711,2.98676,3348.1,3347.8,0.4]
[1722340105764,2.98693,3348.0,3347.8,0.4]
[1722340105972,3.682799,3348.0,3347.8,0.4]
[1722340106129,2.98694,3347.9,3347.8,0.4]
[1722340107038,8.47198,3347.9,3347.8,0.4]
[1722340107403,11.45892,3347.9,3347.8,0.4]
[1722340107688,12.00892,3347.9,3347.8,0.4]
[1722340107992,16.13187264,3347.9,3347.8,0.4]
[1722340108139,13.93588441,3347.9,3347.8,0.4]
[1722340108340,16.13120039,3347.9,3347.8,0.4]
[1722340108568,13.93588441,3347.9,3347.8,0.4]
[1722340108892,10.94894441,3347.9,3347.8,0.4]
[1722340109407,10.39894441,3347.9,3347.8,0.4]
[1722340109605,5.97388,3347.9,3347.8,0.4]
[1722340110785,0.695869,3348.0,3347.8,0.4]
[1722340110990,3.0,3348.0,3347.8,0.54078655]
[1722340111286,2.3568,3348.4,3347.8,0.54078655]
[1722340111584,2.98672,3348.2,3347.8,0.54078655]
[1722340112456,2.98678,3348.1,3347.8,0.54078655]
[1722340112642,2.98685,3348.0,3347.8,0.54078655]
[1722340112985,5.9735,3348.2,3347.8,0.54078655]
[1722340113198,2.98674,3348.2,3347.8,0.54078655]
[1722340113797,2.98672,3348.2,3347.8,3.52781655]
[1722340114345,2.98659,3348.3,3347.8,5.53101655]
[1722340114849,2.98659,3348.3,3347.8,5.73101655]
[1722340115145,2.98678,3348.1,3347.8,0.34078655]
[1722340116244,2.98693,3348.0,3347.8,0.34078655]
[1722340116471,2.98694,3347.9,3347.8,0.34078655]
[1722340116844,2.98678,3348.1,3347.8,0.34078655]
[1722340117446,5.97361,3348.1,3347.8,0.34078655]
[1722340118185,2.98691,3348.0,3347.8,0.34078655]
[1722340118568,5.97388,3347.9,3347.8,0.34078655]
[1722340118813,11.34172,3347.9,3347.8,0.54078655]
[1722340119095,11.34172,3347.9,3347.8,0.4]
[1722340122866,11.34172,3347.9,3347.8,0.6]
[1722340122867,11.89172,3347.9,3347.8,0.6]
[1722340123066,13.89466008,3347.9,3347.8,0.6]
[1722340124986,16.89466008,3347.9,3347.8,0.6]
[1722340127070,16.89466008,3347.9,3347.8,0.8]
[1722340131162,16.89466008,3347.9,3347.8,1.0]
[1722340135331,17.87966008,3347.9,3347.8,1.0]
[1722340137432,12.51182008,3347.9,3347.8,1.0]
[1722340137628,11.96182008,3347.9,3347.8,1.0]
[1722340140222,10.97682008,3347.9,3347.8,1.0]
[1722340140426,11.96182008,3347.9,3347.8,1.0]
[1722340145729,11.96182008,3347.9,3347.8,1.13668427]
[1722340148447,11.96182008,3347.9,3347.8,1.0]
[1722340149944,11.96182008,3347.9,3347.8,1.13661601]
[1722340150667,6.95888,3347.9,3347.8,1.13661601]
[1722340152454,6.95888,3347.9,3347.8,1.0]
[1722340152997,6.95888,3347.9,3347.8,1.13661601]
[1722340157061,3.97194,3347.9,3347.8,1.13661601]
[1722340161280,3.97194,3347.9,3347.8,0.13661601]
[1722340161485,6.95888,3347.9,3347.8,0.33661601]
[1722340161785,6.95888,3347.9,3347.8,0.2]
[1722340161995,6.95888,3347.9,3347.8,0.33659596]
[1722340162179,6.95888,3347.9,3347.8,0.2]
[1722340164089,3.97194,3347.9,3347.8,0.2]
[1722340164496,3.97194,3347.9,3347.8,0.33659596]
[1722340165103,2.98677,3348.1,3347.8,0.33659596]
[1722340165507,2.98677,3348.1,3347.8,0.53659596]
[1722340167005,2.98668,3348.2,3347.8,0.53659596]
[1722340167638,3.9716,3348.3,3347.8,0.53659596]
[1722340167639,2.98678,3348.1,3347.8,0.53659596]
[1722340168737,2.98668,3348.2,3347.8,0.53659596]
[1722340169526,2.98677,3348.1,3347.8,0.53659596]
[1722340169799,2.98677,3348.1,3347.8,0.73659596]
[1722340173801,3.97177,3348.1,3347.8,0.93659596]
[1722340174242,3.97194,3347.9,3347.8,0.93659596]
[1722340177956,0.985,3347.9,3347.8,0.93659596]
[1722340178112,2.98686,3348.0,3347.8,0.93659596]
[1722340178946,2.9867,3348.2,3347.8,0.93659596]
[1722340179249,2.98677,3348.1,3347.8,0.93659596]
[1722340180608,2.98669,3348.2,3347.8,0.93659596]
[1722340181011,0.985,3348.3,3347.8,0.93659596]
[1722340181212,2.98672,3348.2,3347.8,0.93659596]
[1722340181447,2.98689,3348.0,3347.8,0.93659596]
[1722340185865,5.9738,3348.0,3347.8,0.93659596]
[1722340186181,2.98694,3347.9,3347.8,0.93659596]
[1722340186651,6.95888,3347.9,3347.8,0.93659596]
[1722340190817,2.98694,3347.9,3347.8,0.93659596]
[1722340192462,2.98682,3348.1,3347.8,0.93659596]
[1722340192755,3.97182,3348.1,3347.8,0.93659596]